Cogmind - Beta 11 @@@ ROGUE MODE // 2022.04.07 @ 12:11:34 Player: Decinym Result: Destroyed by D-53 Grenadier with Mini Grenade Launcher Performance ------------- Evolutions (0) 0 Regions Visited (2) 400 Robots Destroyed (16) 80 Value Destroyed (375) 375 Prototype IDs (0) 0 Alien Tech Used (0) 0 Bonus (0) 0 TOTAL SCORE: 855 Bonus ------- None Cogmind --------- Core Integrity 0/250 Matter 300/300 Energy 265/265 System Corruption 0% Temperature Warning (313) Movement Core (550) Ox10 Location -10/Mines Parts ------- > --- POWER (1) -------- Improved Ion Engine > --- PROPULSION (2) --- (None) > --- UTILITY (2) ------ Large Storage Unit > --- WEAPON (2) ------- Beam Rifle Beam Rifle > --- INVENTORY (15) --- Ion Engine Light Ion Engine Aluminum Leg Aluminum Leg Medium Storage Unit Targeting Computer EM Pulse Gun Light Assault Rifle Heavy Assault Rifle Grenade Launcher Rocket Launcher Datajack Peak State ------------ > --- POWER ------------ Improved Ion Engine > --- PROPULSION ------- Light Treads Light Treads > --- UTILITY ---------- Large Storage Unit Light Armor Plating > --- WEAPON ----------- Beam Rifle Beam Rifle > --- INVENTORY -------- Ion Engine Ion Engine Light Ion Engine Light Treads Aluminum Leg Aluminum Leg Medium Storage Unit EM Pulse Gun Light Assault Rifle Heavy Assault Rifle Grenade Launcher Rocket Launcher [Rating: 11] Favorites ----------- Power Ion Engine Engine Ion Engine Propulsion Light Treads Treads Light Treads Leg Aluminum Leg Utility Large Storage Unit Storage Large Storage Unit Protection Light Armor Plating Weapon Small Laser Energy Gun Small Laser Launcher Grenade Launcher Build | -11 -10 -10 ------- Run | Scr Mat Min Slots Evolved . | . . . Power . | . . . Propulsion . | . . . Utility . | . . . Weapon . | . . . Parts Attached 15 | . 8 7 Power 2 | . 1 1 Engine 2 | . 1 1 Core . | . . . Reactor . | . . . Propulsion 4 | . 2 2 Treads 4 | . 2 2 Leg . | . . . Wheel . | . . . Hover . | . . . Flight . | . . . Utility 3 | . 1 2 Device . | . . . Storage 1 | . 1 . Processor . | . . . Hackware . | . . . Protection 2 | . . 2 Artifact . | . . . Weapon 6 | . 4 2 Energy Gun 4 | . 2 2 Energy Cannon . | . . . Ballistic Gun . | . . . Ballistic Cannon . | . . . Launcher 2 | . 2 . Special Weapon . | . . . Impact Weapon . | . . . Slashing Weapon . | . . . Piercing Weapon . | . . . Special Melee Weapon . | . . . Unidentified Prototypes . | . . . Parts Lost 5 | . . 5 Power . | . . . Propulsion 3 | . . 3 Utility 2 | . . 2 Weapon . | . . . Highest Loss Streak 5 | . . 5 To Critical Strikes . | . . . Average Slot Usage (%) 90 | . 85 95 Engine 14 | . 14 14 Treads 21 | . 13 27 Leg 6 | . 14 . Storage 14 | . 14 14 Protection 5 | . . 9 Energy Gun 27 | . 27 28 Naked Turns . | . . . Heaviest Build 36 | 11 33 36 Greatest Support 40 | 20 40 40 Greatest Overweight (x) 1 | . 1 . Average Overweight (x) . | . . . Largest Inventory Capacity 15 | . 15 15 Average Capacity 13 | . 11 15 Most Carried 14 | . 8 14 Average Carried 9 | . 5 12 Final Capacity 15 | 8 15 15 Final Carried 12 | 6 8 12 Class Distribution -------------------- 62% | Mutant 37% | Scavenger-Mutant Dominant Class ---------------- Mutant | -10/Materials Scavenger-Mutant | -10/Mines Resources | -11 -10 -10 ----------- Run | Scr Mat Min Matter Collected 380 | 173 157 50 Remotely . | . . . Salvage Created 547 | . 427 120 Parts 22 | . 14 8 Haulers Intercepted . | . . . Recyclers Shooed . | . . . Parts Field Recycled . | . . . Retrieved Matter . | . . . Parts Self-Destructed . | . . . Prevented . | . . . Kills | -11 -10 -10 ------- Run | Scr Mat Min Combat Hostiles Destroyed 11 | . 9 2 Guns 7 | . 5 2 AOE 4 | . 4 . Classes Destroyed 5 | . 4 1 Worker 3 | . 2 1 Recycler 2 | . 2 . Swarmer 3 | . 3 . Grunt 6 | . 6 . Sentry 2 | . . 2 Best Kill Streak 7 | . 7 2 Combat Bots Only 5 | . 5 2 Max Kills in Single Turn 2 | . 2 1 Gunslinging . | . . . Exploded 1 | . 1 . Melee . | . . . Uniques/NPCs Destroyed . | . . . Combat | -11 -10 -10 -------- Run | Scr Mat Min Damage Taken 1208 | . 278 930 Core 262 | . 68 194 Absorbed by Shields . | . . . Core Remaining (%) 100 | 100 . . Volleys Fired 34 | . 22 12 Largest 2 | . 2 2 Hottest 112 | . 80 112 Shots Fired 63 | . 39 24 Gun 58 | . 34 24 Cannon . | . . . Launcher 5 | . 5 . Special . | . . . Kinetic . | . . . Thermal 47 | . 23 24 Explosive 5 | . 5 . Electromagnetic 11 | . 11 . Robot Hit Streak 9 | . 9 8 Robot Miss Streak 7 | . 3 7 Penetration Max . | . . . Secondary Targets 2 | . 2 . Max Gunslinging Chain 1 | . 1 . Shots Hit Robots 38 | . 25 13 Core Hits 24 | . 19 5 Critical Kills . | . . . Critical Parts Destroyed . | . . . Critical Strikes . | . . . Melee Attacks . | . . . Impact . | . . . Slashing . | . . . Piercing . | . . . Sneak Attacks . | . . . Combat Hostiles . | . . . Follow-up Attacks . | . . . Damage Inflicted 865 | . 707 158 Guns 455 | . 297 158 Cannons . | . . . Explosions 410 | . 410 . Melee . | . . . Ramming . | . . . Kinetic . | . . . Thermal 378 | . 220 158 Explosive 383 | . 383 . Electromagnetic 104 | . 104 . Impact . | . . . Slashing . | . . . Piercing . | . . . Highest Corruption . | . . . Average Corruption . | . . . Corruption Purged . | . . . Corruption Blocked . | . . . Overload Shots . | . . . Overflow Damage 53 | . 53 . Projectiles . | . . . Explosions 53 | . 53 . Melee . | . . . Knockbacks . | . . . Impact . | . . . Kinetic . | . . . Secondary . | . . . Self-Inflicted Damage 77 | . 77 . Shots 3 | . 3 . Rammed . | . . . Targets Rammed . | . . . Kicked . | . . . Crushed . | . . . Highest Temperature 313 | . 153 313 Average Temperature 77 | . 54 109 Received Heat Transfer 168 | . 78 90 Siege Activations . | . . . Robots Corrupted . | . . . Combat Hostiles . | . . . Parts Fried 1 | . 1 . Impact Corruptions . | . . . Robots Melted . | . . . Combat Hostiles . | . . . Parts Melted 3 | . 1 2 Heat Transferred 873 | . 500 373 Parts Sabotaged . | . . . Parts Stolen . | . . . Parts Stripped . | . . . Power Chain Reactions 1 | . 1 . Missiles Intercepted . | . . . Alert | -11 -10 -10 ------- Run | Scr Mat Min Peak Influence 335 | . 335 190 Initial 130 | . . 130 Average 141 | . 106 173 Maximum Alert Level 1 | . 1 . Low Security (%) 90 | . 79 100 Level 1 9 | . 20 . Level 2 . | . . . Level 3 . | . . . Level 4 . | . . . Level 5 . | . . . High Security . | . . . Max Security . | . . . Squads Dispatched 1 | . 1 . Investigation 1 | . 1 . Extermination . | . . . Reinforcement . | . . . Assault . | . . . Garrison . | . . . Intercept . | . . . Searches Triggered . | . . . Construction Impeded . | . . . Haulers Reinforced . | . . . Active Scanning Responses . | . . . Cargo Convoy Interrupts . | . . . Stealth | -11 -10 -10 --------- Run | Scr Mat Min Distress Signals . | . . . Communications Jammed . | . . . Distress Signals . | . . . Times Spotted 16 | . 12 4 Peak Tracking Total 5 | . 5 2 Tactical Retreats . | . . . Traps | -11 -10 -10 ------- Run | Scr Mat Min Traps Triggered . | . . . Indirectly . | . . . Trap Hack Attempts . | . . . Triggered . | . . . Disarmed . | . . . Reprogrammed . | . . . Reused . | . . . Traps Extracted . | . . . Installed . | . . . Triggered . | . . . Machines | -11 -10 -10 ---------- Run | Scr Mat Min Machines Disabled 1 | . 1 . Max in Single Turn 1 | . 1 . Machines Sabotaged . | . . . Garrisons Compromised . | . . . Overloaded Fab Kills . | . . . Hacking | -11 -10 -10 --------- Run | Scr Mat Min Machines Accessed 2 | . 2 . Terminals 2 | . 2 . Fabricators . | . . . Repair Stations . | . . . Recycling Units . | . . . Scanalyzers . | . . . Garrison Access . | . . . Total Hacks 5 | . 5 . Successful 2 | . 2 . Failed 3 | . 3 . Catastrophic . | . . . Database Lockouts . | . . . Manual 3 | . 3 . Terminals 5 | . 5 . Fabricators . | . . . Repair Stations . | . . . Recycling Units . | . . . Scanalyzers . | . . . Garrison Access . | . . . Terminal Hacks 2 | . 2 . Branch Access Points 1 | . 1 . Hauler Manifests 1 | . 1 . Fabricator Hacks . | . . . Repair Station Hacks . | . . . Recycling Unit Hacks . | . . . Scanalyzer . | . . . Garrison Access Hacks . | . . . Unauthorized Hacks . | . . . Terminals . | . . . Fabricators . | . . . Repair Stations . | . . . Recycling Units . | . . . Scanalyzers . | . . . Garrison Access . | . . . Data Cores Recovered . | . . . Used . | . . . Hacking Detections 1 | . 1 . Full Trace Events 1 | . 1 . Feedback Events . | . . . Feedback Blocked . | . . . Robot Schematics Acquired . | . . . Robots Built . | . . . Authchips . | . . . Time . | . . . Total Robot Build Rating . | . . . Part Schematics Acquired . | . . . Parts Built . | . . . Authchips . | . . . Time . | . . . Total Part Build Rating . | . . . Parts Repaired . | . . . Time . | . . . Parts Recycled . | . . . Recycled Matter . | . . . Retrieved Matter . | . . . Retrieved Components . | . . . Parts Scanalyzed . | . . . Part Schematics Acquired . | . . . Parts Damaged . | . . . Bothacking | -11 -10 -10 ------------ Run | Scr Mat Min Used RIF Installer . | . . . Robots Hacked . | . . . Non-combat . | . . . Combat . | . . . Robot Hacks Applied . | . . . Relay Couplers Released . | . . . Fabnet Peak Effective % . | . . . Robots Rewired . | . . . Allies Hacked . | . . . Hacks Repelled . | . . . Allies | -11 -10 -10 -------- Run | Scr Mat Min Total Allies . | . . . Largest Group . | . . . Highest-Rated Group . | . . . Highest-Rated Ally . | . . . Total Orders . | . . . Ally Attacks . | . . . Total Damage . | . . . Kills . | . . . Allies Corrupted . | . . . Allies Melted . | . . . Intel | -11 -10 -10 ------- Run | Scr Mat Min Robot Analysis Total . | . . . Derelict Logs Recovered 1 | . . 1 Drone Launches . | . . . Drone Recoveries . | . . . Exploration | -11 -10 -10 ------------- Run | Scr Mat Min Turns Passed 708 | . 337 371 Spaces Moved 388 | 1 190 197 Core . | . . . Treads 278 | . 81 197 Legs 110 | 1 109 . Wheels . | . . . Hover . | . . . Flight . | . . . Fastest Speed 120 | 120 120 160 Average Speed 148 | 120 137 160 Slowest Speed 190 | 120 190 160 Overloaded Moves . | . . . Propulsion Burnouts . | . . . Robots Hopped . | . . . Cave-ins Triggered . | . . . Exploration Rate (%) 21 | 2 36 26 Regions Visited 2 Branch Regions 1 Pre-discovered Areas . | . . . Known Exits Taken 1 | . 1 . Unknown Exits Taken 1 | 1 . . Scrap Searched . | . . . Spaces Dug . | . . . Terrain Destroyed 15 | . 15 . Melee . | . . . Projectile . | . . . AOE 15 | . 15 . Terrain Rammed . | . . . Walls Destroyed . | . . . Machines Disabled . | . . . Actions | -11 -10 -10 --------- Run | Scr Mat Min Total 452 | . 225 227 Wait 3 | . . 3 Move 386 | . 189 197 Hop . | . . . Pick Up 8 | . 3 5 Fast Attach 4 | . 1 3 Attach 2 | . . 2 Detach . | . . . Swap 9 | . 7 2 Drop 6 | . 3 3 Fire 34 | . 22 12 Melee . | . . . Ram . | . . . Kick . | . . . Crush . | . . . Escape Stasis . | . . . Rewire . | . . . Trap . | . . . Miscellaneous . | . . . Route ------- -11/Scrapyard -10/Materials -10/Mines (discovered 1 exit: [*Exi]) History --------- Turn | Location | Event 1 | -11/Scrapyard | Discovered new exit (range 0) 1 | -11/Scrapyard | Entered Materials 131 | -10/Materials | Identified exit to Mines 313 | -10/Materials | Build established: Mutant 338 | -10/Materials | Entered Mines 345 | -10/Mines | Received a Rocket Launcher from a helpful Derelict 494 | -10/Mines | Deemed a non-threat by the Exiles lab entrance 494 | -10/Mines | Discovered new exit (range 5) 674 | -10/Mines | Assembled infested the area 674 | -10/Mines | Learned Materials emergency access door positions 702 | -10/Mines | Core integrity fell below 50% 708 | -10/Mines | Core integrity fell below 20% 709 | -10/Mines | Destroyed by D-53 Grenadier with Mini Grenade Launcher Last Messages --------------- 00612_ K-01 Serf collects debris. 00626_ Wheel melted. 00626_ K-01 Serf destroyed. 00668_ K-01 Serf collects debris. 00674_ ALERT: Infestation in the mines, dispatching Demolisher response squad. 00674_ Acquired derelict log, extracted data. Data stored: Materials emergency access points. 00688_ C-30 ARC bursts open, deploying its payload. 00688_ D-53 Grenadier unfolds itself. 00688_ U-05 Engineer destroyed. 00688_ K-01 Serf destroyed. 00692_ Lgt. Armor Plating destroyed. 00696_ Lgt. Treads destroyed. 00700_ The unstable cave ceiling collapses. 00701_ Lgt. Armor Plating destroyed. 00702_ The unstable cave ceiling collapses. 00703_ Lgt. Treads destroyed. 00705_ The unstable cave ceiling collapses. 00708_ U-05 Engineer lays Concrete. Map ----- +----------------------------------------------------+ | ???????????????????????????????????????????????? | | ???????????????????????????????????????????????? | | ???????????????????????????????????????????????? | | ???????????????????????????????????????????????? | | ???????????????????????????????????????????????? | | ???????????????????????????????????????????????? | | ???????????????????????????????????????????????? | | ???????????????????????????????????????????????? | | ???????????????????????????????????????????????? | | ??????????????????????? ???????????????????????? | | ?????????????????????? ???????????????????????? | | ?????????????????? ???" ???????????????????????? | | ??????????????????? """ ???????????????????????? | | ??????????????????? """ ???????????????????????? | | ???????????????????? ???????????????????????? | | ????????????????????? ???????????????????????? | | ?????????????????????# ###????????????????????? | | ?????????????????????? #????????????????????? | | ??????????????????????? % ####?????????????????? | | ???????????????????????# d# #?????????????????? | | ????????????????????####dt #?????????????????? | | ???????????????????## #??????????????????? | | ??????????????????## =#??????????????????? | | ??????????????????# ####???????????????? | | ??????????????????# #???????????????? | | ?????????????####?# @ u #???????????????? | | ????????????## ### ## #???????????????? | | ???????????## # #???????????????? | | ???????????# # #???????????????? | | ???????????# ## ???????????????? | | ???????????# ### ####???????????????? | | ???????????# ####?########??????????????????? | | ??????####### ##??????????????????????????????? | | ?????##" "## #???????????????????????????????? | | ?????#! !!# #???????????????????????????????? | | ?????# ! [ # #######?????????????????????????? | | ?????## ## =%*#?????????????????????????? | | ????####++### ##### #?????????????????????????? | | ???## % % # #???# #?????????????????????????? | | ??## # ##??# #?????????????????????????? | | ??# ##?# #?????????????????????????? | | ??# ### ##????????????????????????? | | ??# ##???????????????????????? | | ??# ##??????????????????????? | | ??# ## #### #??????????????????????? | | ??## #### ###?## #?????????????###??????? | | ???#######??# ##?# #?????????????# ##?????? | | ????????????### #?# ###########???# #?????? | | ??????????????# ##?# # #??## #?????? | | ?????????????# #??# #?## #?????? | +----------------------------------------------------+ Best States ------------- Heat Dissipation 25 Energy Generation 12 Energy Capacity 265 Matter Stores 300 Matter Capacity 300 Sight Range 16 Terrain Scan Density 10 Armor Coverage 150 Evasion (%) 55 Recoil Reduction 2 Item Schematics ----------------- None Robot Schematics ------------------ None Fabricated ------------ Nothing Alien Tech Used ----------------- None Achievements -------------- None Challenges ------------ None Game ------ Seed IntegrityFluxMicroactuators Manual? 0 Play Time 00:06:20 Cumulative 302.2 hours Start 2022.04.06 @ 15:23:21 End 2022.04.07 @ 12:11:34 Sessions 3 Manual Loads 0 Difficulty Rogue Special Mode None Game No. 338 Rogue 338 Adventurer 0 Explorer 0 Win Type - Total 27 Types 16/3/2/1/2/0/3/0/0 Lore% 83 Gallery% 81 Achievement% 80 Wizard Run 0 Options --------- ASCII 0 Keyboard 0 Movement Arrows Keybinds 0 Fullscreen 1 Font 18/SmallcapsGlow Map View 76x50 Tactical HUD 1 Map Filters NONE Filters NONE Steam 1 RUN: 23bf3a8d-64ba-4746-b480-d1f0a4975a42